fUSD/lending_fUSD_20251029
["ID","MTS","AMOUNT","RATE_DAILY","PERIOD"]
[392621144,1761752602031,500.0,0.00031046,120]
[392621148,1761752673308,-212.98147593,0.00013579,2]
[392621149,1761752712860,150.0,0.00013488,2]
[392621150,1761752713213,150.0,0.00013488,2]
[392621151,1761752713418,150.0,0.00013488,2]
[392621152,1761752713613,-315.7256572,0.00013579,2]
[392621153,1761752719337,150.0,0.00013488,2]
[392621154,1761752721513,150.0,0.00013488,2]
[392621155,1761752721583,150.0,0.00013488,2]
[392621156,1761752721667,150.0,0.00013488,2]
[392621157,1761752731077,-1471.02516751,0.00013579,2]
[392621158,1761752731098,-151.0,0.00013579,2]
[392621159,1761752733077,-194.87712546,0.00013579,2]
[392621160,1761752733101,-129.87987454,0.00013581,2]
[392621161,1761752733725,150.0,0.00013488,2]
[392621162,1761752733859,150.0,0.00013488,2]
[392621163,1761752734045,150.0,0.00013488,2]
[392621164,1761752734089,150.0,0.00013488,2]
[392621165,1761752735319,-617.13063187,0.00013581,2]
[392621166,1761752736379,150.0,0.00013488,2]
[392621167,1761752738790,-183.35191867,0.00013581,2]
[392621168,1761752743535,4241.34,0.0001304,2]
[392621169,1761752744552,-163.63975057,0.00013679,2]
[392621170,1761752744575,-120.18036905,0.00013699,2]
[392621175,1761752770662,9245.36,0.00013062,2]
[392621191,1761752864405,227.71560278,0.00031046,120]
[392621192,1761752885543,27956.63,0.0001304,2]
[392621193,1761752898252,-182.13222298,0.00013679,2]
[392621194,1761752898277,-196.64267996,0.00013679,2]
[392621195,1761752898302,-79.81963095,0.00013699,2]
[392621196,1761752898327,-41.40546611,0.00013722,2]
[392621199,1761752951672,2000.0,0.00031506,120]
[392621240,1761752986271,2000.0,0.00031506,120]
[392621246,1761753022351,234.43220455,0.000315,120]
[392621259,1761753031537,175.61,0.0001068,2]
[392621260,1761753031736,-153.59453389,0.00013722,2]
[392621261,1761753031747,-1446.40546611,0.00013773,2]
[392621262,1761753031759,-624.34738135,0.00013773,2]
[392621263,1761753031769,-1200.0,0.00013779,2]
[392621264,1761753031779,-1322.03966228,0.00013781,2]
[392621265,1761753031790,-1177.96033772,0.00013781,2]
[392621266,1761753031801,-150.0,0.00013787,2]
[392621267,1761753031811,-150.0,0.00013871,2]
[392621268,1761753031826,-300.0,0.00013871,2]
[392621269,1761753031837,-300.0,0.00013871,2]
[392621270,1761753031847,-1200.0,0.00013871,2]
[392621271,1761753031857,-500.0,0.00013872,2]
[392621272,1761753031867,-616.46767443,0.00013872,2]
[392621273,1761753031877,-500.0,0.00013872,2]
[392621274,1761753031888,-500.0,0.00013872,2]
[392621275,1761753031898,-500.0,0.00013872,2]
[392621276,1761753031909,-500.0,0.00013872,2]
[392621277,1761753031919,-500.0,0.00013872,2]
[392621278,1761753031929,-382.81406259,0.00013872,2]
[392621279,1761753031939,-500.0,0.00013872,2]
[392621280,1761753031949,-500.0,0.00013872,2]
[392621281,1761753031959,-198.11471973,0.00013872,2]
[392621282,1761753031969,-500.0,0.00013872,2]
[392621283,1761753031979,-500.0,0.00013872,2]
[392621284,1761753031990,-500.0,0.00013872,2]
[392621285,1761753032000,-500.0,0.00013872,2]
[392621286,1761753032010,-500.0,0.00013872,2]
[392621287,1761753032021,-500.0,0.00013872,2]
[392621288,1761753032030,-500.0,0.00013872,2]
[392621289,1761753032041,-500.0,0.00013872,2]
[392621290,1761753032051,-500.0,0.00013872,2]
[392621291,1761753032062,-500.0,0.00013872,2]
[392621292,1761753032076,-500.0,0.00013872,2]
[392621293,1761753032086,-500.0,0.00013872,2]
[392621294,1761753032096,-500.0,0.00013872,2]
[392621295,1761753032107,-500.0,0.00013872,2]
[392621296,1761753032116,-500.0,0.00013872,2]
[392621297,1761753032126,-500.0,0.00013872,2]
[392621298,1761753032136,-500.0,0.00013872,2]
[392621299,1761753032146,-500.0,0.00013872,2]
[392621300,1761753032155,-500.0,0.00013872,2]
[392621301,1761753032165,-500.0,0.00013872,2]
[392621302,1761753032175,-500.0,0.00013872,2]
[392621303,1761753032185,-500.0,0.00013872,2]
[392621304,1761753032195,-500.0,0.00013872,2]
[392621305,1761753032205,-500.0,0.00013872,2]
[392621306,1761753032215,-500.0,0.00013872,2]
[392621307,1761753032225,-500.0,0.00013872,2]
[392621308,1761753032235,-500.0,0.00013872,2]
[392621309,1761753032245,-500.0,0.00013872,2]
[392621312,1761753032255,-220.98412807,0.00013872,2]
[392621336,1761753032404,-500.0,0.00013872,2]
[392621339,1761753032414,-500.0,0.00013872,2]
[392621342,1761753032424,-515.05980017,0.00013872,2]
[392621344,1761753032434,-500.0,0.00013872,2]
[392621347,1761753032443,-500.0,0.00013872,2]
[392621350,1761753032454,-500.0,0.00013872,2]
[392621354,1761753032467,-500.0,0.00013872,2]
[392621355,1761753032477,-500.0,0.00013872,2]
[392621357,1761753032487,-500.0,0.00013872,2]
[392621359,1761753032498,-500.0,0.00013872,2]
[392621361,1761753032508,-500.0,0.00013872,2]
[392621363,1761753032518,-500.0,0.00013872,2]
[392621365,1761753032528,-500.0,0.00013872,2]
[392621367,1761753032538,-500.0,0.00013872,2]
[392621369,1761753032548,-500.0,0.00013872,2]
[392621371,1761753032558,-500.0,0.00013872,2]
[392621373,1761753032569,-150.0,0.00013872,2]
[392621375,1761753032579,-500.0,0.00013872,2]
[392621377,1761753032590,-500.0,0.00013872,2]
[392621379,1761753032599,-151.0,0.00013872,2]
[392621381,1761753032613,-151.0,0.00013872,2]
[392621383,1761753032623,-151.0,0.00013872,2]
[392621385,1761753032633,-151.0,0.00013872,2]
[392621387,1761753032643,-151.0,0.00013872,2]
[392621389,1761753032653,-258.41525798,0.00013872,2]
[392621391,1761753032663,-151.0,0.00013872,2]
[392621393,1761753032673,-151.0,0.00013872,2]
[392621395,1761753032683,-151.0,0.00013872,2]
[392621397,1761753032693,-151.0,0.00013872,2]
[392621399,1761753032703,-151.0,0.00013872,2]
[392621401,1761753032713,-151.0,0.00013872,2]
[392621403,1761753032723,-151.0,0.00013872,2]
[392621405,1761753032733,-151.0,0.00013872,2]
[392621407,1761753032742,-151.0,0.00013872,2]
[392621409,1761753032752,-151.0,0.00013872,2]
[392621411,1761753032762,-151.0,0.00013872,2]
[392621413,1761753032771,-241.77981679,0.00013873,2]
[392621415,1761753032781,-501.14804298,0.00013873,2]
[392621417,1761753032791,-500.0,0.00013873,2]
[392621419,1761753032801,-429.61878183,0.00013873,2]
[392621421,1761753032810,-500.87459369,0.00013873,2]
[392621423,1761753032821,-500.0,0.00013873,2]
[392621425,1761753032831,-500.0,0.00013873,2]
[392621427,1761753032841,-500.0,0.00013873,2]
[392621429,1761753032851,-9999.99,0.00013873,2]
[392621431,1761753032861,-9999.99,0.00013873,2]
[392621433,1761753032871,-9999.99,0.00013873,2]
[392621435,1761753032881,-499.99,0.00013873,2]
[392621437,1761753032891,-150.99,0.00013873,2]
[392621439,1761753032901,-1588.1,0.00013873,2]
[392621441,1761753032911,-999.99,0.00013873,2]
[392621443,1761753032921,-1366.96,0.00013878,2]
[392621445,1761753032931,-500.0,0.0001388,2]
[392621447,1761753032940,-500.0,0.0001388,2]
[392621448,1761753032950,-500.0,0.0001388,2]
[392621449,1761753032960,-366.59123672,0.0001388,2]
[392621450,1761753032970,-519.19897658,0.0001388,2]
[392621451,1761753032979,-500.0,0.0001388,2]
[392621452,1761753032989,-500.0,0.0001388,2]
[392621453,1761753032998,-4205.89,0.0001388,2]
[392621454,1761753033009,-358.44058251,0.0001388,2]
[392621455,1761753033019,-500.0,0.0001388,2]
[392621456,1761753033029,-172.48854644,0.0001388,2]
[392621457,1761753033039,-444.02348171,0.0001388,2]
[392621458,1761753033048,-546.73224676,0.0001388,2]
[392621459,1761753033058,-500.0,0.0001388,2]
[392621460,1761753033068,-500.0,0.0001388,2]
[392621461,1761753033077,-45512.57528498,0.00013881,2]
[392621462,1761753033091,-71868.46403111,0.00013881,2]
[392621463,1761753033101,-1000.0,0.00013881,2]
[392621464,1761753033110,-150.0,0.00013987,2]
[392621465,1761753033121,-150.0,0.00013987,2]
[392621466,1761753033131,-500.0,0.00013993,2]
[392621467,1761753033140,-150.0,0.00014087,2]
[392621468,1761753033150,-500.0,0.00014137,2]
[392621469,1761753033159,-1366.96,0.00014152,2]
[392621470,1761753033169,-152.51847877,0.00014155,2]
[392621471,1761753033179,-500.0,0.00014155,2]
[392621472,1761753033188,-500.0,0.00014155,2]
[392621473,1761753033198,-250.0,0.00014155,2]
[392621474,1761753033207,-574.12855637,0.00014155,2]
[392621475,1761753033218,-250.0,0.00014155,2]
[392621476,1761753033228,-500.0,0.00014155,2]
[392621477,1761753033237,-250.0,0.00014155,2]
[392621478,1761753033247,-250.0,0.00014155,2]
[392621479,1761753033257,-621.14687548,0.00014155,2]
[392621480,1761753033266,-500.0,0.00014155,2]
[392621481,1761753033276,-250.0,0.00014155,2]
[392621482,1761753033286,-250.0,0.00014155,2]
[392621483,1761753033296,-500.0,0.00014155,2]
[392621484,1761753033306,-250.0,0.00014155,2]
[392621485,1761753033317,-500.0,0.00014155,2]
[392621486,1761753033327,-250.0,0.00014155,2]
[392621487,1761753033337,-500.0,0.00014155,2]
[392621488,1761753033347,-500.0,0.00014155,2]
[392621489,1761753033357,-168.30301893,0.00014155,2]
[392621490,1761753033367,-500.0,0.00014155,2]
[392621491,1761753033377,-500.0,0.00014155,2]
[392621492,1761753033387,-500.0,0.00014155,2]
[392621493,1761753033396,-500.0,0.00014155,2]
[392621494,1761753033406,-500.0,0.00014155,2]
[392621495,1761753033416,-500.0,0.00014155,2]
[392621496,1761753033426,-500.0,0.00014155,2]
[392621497,1761753033435,-500.0,0.00014155,2]
[392621498,1761753033445,-500.0,0.00014155,2]
[392621499,1761753033456,-500.0,0.00014155,2]
[392621500,1761753033468,-250.0,0.00014155,2]
[392621501,1761753033477,-500.0,0.00014155,2]
[392621502,1761753033487,-500.0,0.00014155,2]
[392621503,1761753033497,-500.0,0.00014155,2]
[392621504,1761753033507,-250.0,0.00014155,2]
[392621505,1761753033516,-500.0,0.00014155,2]
[392621506,1761753033526,-500.0,0.00014155,2]
[392621507,1761753033537,-250.0,0.00014155,2]
[392621508,1761753033549,-13.26689727,0.00014155,2]
[392621509,1761753033561,-486.73310273,0.00014155,2]
[392621510,1761753033571,-500.0,0.00014155,2]
[392621511,1761753033581,-500.0,0.00014155,2]
[392621512,1761753033591,-250.0,0.00014155,2]
[392621513,1761753033600,-500.0,0.00014155,2]
[392621514,1761753033610,-250.0,0.00014155,2]
[392621515,1761753033620,-500.0,0.00014155,2]
[392621516,1761753033629,-347.15777344,0.00014155,2]
[392621517,1761753033640,-500.0,0.00014155,2]
[392621518,1761753033649,-578.20924308,0.00014155,2]
[392621519,1761753033659,-500.0,0.00014155,2]
[392621520,1761753033668,-500.0,0.00014155,2]
[392621521,1761753033679,-500.0,0.00014155,2]
[392621522,1761753033689,-250.0,0.00014155,2]
[392621523,1761753033700,-250.0,0.00014155,2]
[392621524,1761753033710,-620.0,0.00014155,2]
[392621525,1761753033720,-500.0,0.00014155,2]
[392621526,1761753033730,-250.0,0.00014155,2]
[392621527,1761753033740,-250.0,0.00014155,2]
[392621528,1761753033749,-250.0,0.00014155,2]
[392621529,1761753033759,-250.0,0.00014155,2]
[392621530,1761753033769,-250.0,0.00014155,2]
[392621531,1761753033779,-250.0,0.00014155,2]
[392621532,1761753033788,-250.0,0.00014155,2]
[392621533,1761753033798,-500.0,0.00014155,2]
[392621534,1761753033807,-500.0,0.00014155,2]
[392621535,1761753033816,-250.0,0.00014155,2]
[392621536,1761753033827,-500.0,0.00014155,2]
[392621537,1761753033836,-264.71289074,0.00014155,2]
[392621538,1761753033846,-500.0,0.00014155,2]
[392621539,1761753033856,-500.0,0.00014155,2]
[392621540,1761753033865,-519.37409755,0.00014155,2]
[392621541,1761753033875,-277.35679052,0.00014155,2]
[392621542,1761753033884,-250.0,0.00014155,2]
[392621543,1761753033894,-250.0,0.00014155,2]
[392621544,1761753033904,-250.0,0.00014155,2]
[392621545,1761753033913,-250.0,0.00014155,2]
[392621546,1761753033923,-250.0,0.00014155,2]
[392621547,1761753033933,-250.0,0.00014155,2]
[392621548,1761753033941,-250.0,0.00014155,2]
[392621549,1761753033951,-250.0,0.00014155,2]
[392621550,1761753033959,-250.0,0.00014155,2]
[392621551,1761753033969,-250.0,0.00014155,2]
[392621552,1761753033978,-250.0,0.00014155,2]
[392621553,1761753033987,-250.0,0.00014155,2]
[392621554,1761753033996,-250.0,0.00014155,2]
[392621555,1761753034005,-172.53209956,0.00014155,2]
[392621556,1761753034016,-250.0,0.00014155,2]
[392621557,1761753034025,-250.0,0.00014155,2]
[392621558,1761753034145,-150.0,0.00014237,2]
[392621559,1761753034155,-150.0,0.00014237,2]
[392621560,1761753034167,-150.0,0.00014237,2]
[392621561,1761753034177,-1325.49,0.00014295,2]
[392621562,1761753034187,-150.0,0.00014387,2]
[392621563,1761753034198,-1000.0,0.00014421,2]
[392621564,1761753034208,-513.48315846,0.00014421,2]
[392621565,1761753034217,-1000.0,0.00014421,2]
[392621566,1761753034226,-1000.0,0.00014421,2]
[392621567,1761753034235,-1366.96,0.00014426,2]
[392621568,1761753034245,-412.26858474,0.00014427,2]
[392621569,1761753034254,-150.0,0.00014487,2]
[392621570,1761753034263,-150.0,0.00014487,2]
[392621571,1761753034273,-500.0,0.00014493,2]
[392621572,1761753034282,-229.41,0.00014514,2]
[392621573,1761753034292,-151.0,0.00014524,2]
[392621574,1761753034302,-155.559294,0.00014524,2]
[392621575,1761753034311,-151.0,0.00014524,2]
[392621576,1761753034322,-151.0,0.00014524,2]
[392621577,1761753034332,-151.0,0.00014524,2]
[392621578,1761753034342,-151.0,0.00014524,2]
[392621579,1761753034352,-153.205364,0.00014524,2]
[392621580,1761753034362,-151.0,0.00014524,2]
[392621581,1761753034371,-151.0,0.00014524,2]
[392621582,1761753034381,-151.0,0.00014524,2]
[392621583,1761753034391,-151.0,0.00014524,2]
[392621584,1761753034401,-216.108556,0.00014524,2]
[392621585,1761753034410,-151.0,0.00014524,2]
[392621586,1761753034420,-151.0,0.00014524,2]
[392621587,1761753034429,-151.0,0.00014524,2]
[392621588,1761753034439,-171.182046,0.00014524,2]
[392621589,1761753034448,-151.0,0.00014524,2]
[392621590,1761753034462,-477.306932,0.00014524,2]
[392621591,1761753034472,-477.306932,0.00014524,2]
[392621592,1761753034482,-477.306932,0.00014524,2]
[392621593,1761753034492,-477.306932,0.00014524,2]
[392621594,1761753034503,-151.0,0.00014524,2]
[392621595,1761753034513,-151.0,0.00014524,2]
[392621596,1761753034524,-151.0,0.00014524,2]
[392621597,1761753034533,-151.0,0.00014524,2]
[392621598,1761753034543,-406.527866,0.00014524,2]
[392621599,1761753034552,-406.527866,0.00014524,2]
[392621600,1761753034562,-406.527866,0.00014524,2]
[392621601,1761753034574,-151.0,0.00014524,2]
[392621602,1761753034584,-151.0,0.00014524,2]
[392621603,1761753034594,-406.527866,0.00014524,2]
[392621604,1761753034603,-151.0,0.00014524,2]
[392621605,1761753034613,-151.0,0.00014524,2]
[392621606,1761753034623,-151.0,0.00014524,2]
[392621607,1761753034633,-151.0,0.00014524,2]
[392621608,1761753034642,-151.0,0.00014524,2]
[392621609,1761753034652,-151.0,0.00014524,2]
[392621610,1761753034662,-151.0,0.00014524,2]
[392621611,1761753034671,-153.768716,0.00014524,2]
[392621612,1761753034681,-156.342931,0.00014524,2]
[392621613,1761753034690,-151.0,0.00014524,2]
[392621614,1761753034699,-294.622079,0.00014524,2]
[392621615,1761753034708,-153.462374,0.00014524,2]
[392621616,1761753034717,-151.0,0.00014524,2]
[392621617,1761753034728,-153.873063,0.00014524,2]
[392621618,1761753034737,-151.0,0.00014524,2]
[392621619,1761753034747,-151.0,0.00014524,2]
[392621620,1761753034757,-151.0,0.00014524,2]
[392621621,1761753034767,-153.634737,0.00014524,2]
[392621622,1761753034776,-151.0,0.00014524,2]
[392621623,1761753034785,-151.0,0.00014524,2]
[392621624,1761753034795,-186.219177,0.00014524,2]
[392621625,1761753034804,-151.0,0.00014524,2]
[392621626,1761753034813,-151.0,0.00014524,2]
[392621627,1761753034824,-186.219177,0.00014524,2]
[392621628,1761753034833,-151.0,0.00014524,2]
[392621629,1761753034843,-186.219177,0.00014524,2]
[392621630,1761753034852,-151.0,0.00014524,2]
[392621631,1761753034862,-186.219177,0.00014524,2]
[392621632,1761753034871,-151.0,0.00014524,2]
[392621633,1761753034893,-188.009819,0.00014524,2]
[392621634,1761753034913,-151.0,0.00014524,2]
[392621635,1761753034934,-151.0,0.00014524,2]
[392621636,1761753034954,-155.934313,0.00014524,2]
[392621637,1761753034972,-1276.350898,0.00014524,2]
[392621638,1761753034991,-151.0,0.00014524,2]
[392621639,1761753035011,-151.0,0.00014524,2]
[392621640,1761753035030,-1276.350898,0.00014524,2]
[392621641,1761753035049,-1276.350898,0.00014524,2]
[392621642,1761753035070,-1276.350898,0.00014524,2]
[392621643,1761753035087,-153.670834,0.00014524,2]
[392621644,1761753035102,-161.291173,0.00014524,2]
[392621645,1761753035119,-248.733799,0.00014524,2]
[392621646,1761753035133,-151.0,0.00014524,2]
[392621647,1761753035150,-151.0,0.00014524,2]
[392621648,1761753035164,-151.0,0.00014524,2]
[392621649,1761753035179,-168.1205,0.00014524,2]
[392621650,1761753035197,-151.0,0.00014524,2]
[392621651,1761753035212,-168.1205,0.00014524,2]
[392621652,1761753035226,-168.1205,0.00014524,2]
[392621653,1761753035241,-168.1205,0.00014524,2]
[392621654,1761753035256,-151.0,0.00014524,2]
[392621655,1761753035271,-151.0,0.00014524,2]
[392621656,1761753035286,-152.701652,0.00014524,2]
[392621657,1761753035301,-151.0,0.00014524,2]
[392621658,1761753035315,-152.860009,0.00014524,2]
[392621659,1761753035331,-151.0,0.00014524,2]
[392621660,1761753035347,-154.123846,0.00014524,2]
[392621661,1761753035362,-151.0,0.00014524,2]
[392621662,1761753035378,-151.0,0.00014524,2]
[392621663,1761753035393,-151.0,0.00014524,2]
[392621664,1761753035409,-153.783693,0.00014524,2]
[392621665,1761753035424,-153.706197,0.00014524,2]
[392621666,1761753035440,-158.300822,0.00014524,2]
[392621667,1761753035455,-151.0,0.00014524,2]
[392621668,1761753035472,-219.446066,0.00014524,2]
[392621669,1761753035487,-219.446066,0.00014524,2]
[392621670,1761753035503,-219.446066,0.00014524,2]
[392621671,1761753035520,-219.446066,0.00014524,2]
[392621672,1761753035537,-169.28,0.00014548,2]
[392621673,1761753035553,-1889.22828587,0.00014558,2]
[392621674,1761753035570,-1889.22828588,0.00014558,2]
[392621675,1761753035586,-151.0,0.00014586,2]
[392621676,1761753035603,-150.0,0.00014687,2]
[392621677,1761753035618,-1366.96,0.000147,2]
[392621678,1761753035633,-595.37131296,0.00014703,2]
[392621679,1761753035650,-642.94,0.00014703,2]
[392621680,1761753035665,-500.0,0.00014712,2]
[392621681,1761753035680,-4205.89,0.00014712,2]
[392621682,1761753035695,-162.45142054,0.00014717,2]
[392621683,1761753035711,-874.07602498,0.00014724,2]
[392621684,1761753035726,-509.0,0.0001474,2]
[392621685,1761753035742,-3705.42416,0.0001485,2]
[392621686,1761753035756,-162.85864398,0.00014873,2]
[392621687,1761753035772,-6230.48049699,0.00014891,2]
[392621688,1761753035787,-2736.55792573,0.00014892,2]
[392621689,1761753036566,175.61,0.0001335,2]
[392621690,1761753036672,-1680.0,0.00014892,2]
[392621691,1761753036684,-1813.92257124,0.00014892,2]
[392621692,1761753036694,-6230.48049697,0.00014893,2]
[392621693,1761753036703,-6230.48049697,0.00014894,2]
[392621694,1761753036713,-1609.04561462,0.00014895,2]
[392621695,1761753036790,-491.86560506,0.00014895,2]
[392621696,1761753036802,-1388.6317456,0.00014895,2]
[392621697,1761753036814,-1121.42817385,0.00014895,2]
[392621860,1761753039695,-383.38,0.00013699,2]
[392621862,1761753039705,-1619.50935784,0.00014895,2]
[392621864,1761753039714,-6230.48049697,0.00014896,2]
[392621866,1761753039724,-6230.48049697,0.00014897,2]
[392621867,1761753039733,-151.0,0.00014898,2]
[392621868,1761753039743,-151.0,0.00014898,2]
[392621869,1761753039753,-151.0,0.00014898,2]
[392621870,1761753039763,-151.0,0.00014898,2]
[392621871,1761753039773,-151.0,0.00014898,2]
[392621872,1761753039782,-151.0,0.00014898,2]
[392621873,1761753039917,-153.651612,0.00014898,2]
[392621874,1761753039975,-151.0,0.00014898,2]
[392621875,1761753039986,-151.0,0.00014898,2]
[392621876,1761753039995,-151.0,0.00014898,2]
[392621877,1761753040005,-6230.48049697,0.00014898,2]
[392621878,1761753040015,-950.2069,0.00014898,2]
[392621879,1761753040025,-296.366326,0.00014899,2]
[392621880,1761753040035,-159.923699,0.00014899,2]
[392621881,1761753040044,-151.0,0.00014899,2]
[392621882,1761753040054,-151.0,0.00014899,2]
[392621883,1761753040063,-151.0,0.00014899,2]
[392621884,1761753040075,-151.0,0.00014899,2]
[392621885,1761753040084,-154.528477,0.00014899,2]
[392621886,1761753040094,-154.924623,0.00014899,2]
[392621888,1761753040103,-151.0,0.00014899,2]
[392621889,1761753040113,-151.0,0.00014899,2]
[392621891,1761753040123,-151.0,0.00014899,2]
[392621893,1761753040132,-151.0,0.00014899,2]
[392621895,1761753040142,-151.0,0.00014899,2]
[392621897,1761753040151,-151.0,0.00014899,2]
[392621899,1761753040161,-151.0,0.00014899,2]
[392621901,1761753040170,-151.0,0.00014899,2]
[392621903,1761753040179,-151.0,0.00014899,2]
[392621905,1761753040188,-151.0,0.00014899,2]
[392621907,1761753040197,-151.0,0.00014899,2]
[392621909,1761753040206,-6230.48049697,0.00014899,2]
[392621911,1761753040216,-451.52401455,0.000149,2]
[392621913,1761753040225,-199.18575029,0.000149,2]
[392621915,1761753040234,-252.61715124,0.000149,2]
[392621917,1761753040244,-209.1383097,0.000149,2]
[392621919,1761753040253,-456.53565454,0.000149,2]
[392621921,1761753040262,-163.43794892,0.000149,2]
[392621924,1761753040272,-6230.48049697,0.000149,2]
[392621927,1761753040281,-250.0,0.00014937,2]
[392621930,1761753040291,-195.0,0.00014937,2]
[392621933,1761753040300,-500.0,0.00014938,2]
[392621935,1761753040309,-500.0,0.00014938,2]
[392621937,1761753040318,-151.0,0.00014968,2]
[392621939,1761753040329,-151.0,0.00014968,2]
[392621941,1761753040338,-151.0,0.00014968,2]
[392621942,1761753040348,-155.080515,0.00014968,2]
[392621943,1761753040357,-151.0,0.00014968,2]
[392621944,1761753040366,-151.0,0.00014968,2]
[392621945,1761753040376,-151.0,0.00014968,2]
[392621946,1761753040385,-151.0,0.00014968,2]
[392621947,1761753040394,-151.0,0.00014968,2]
[392621948,1761753040403,-154.79627,0.00014968,2]
[392621949,1761753040412,-151.0,0.00014968,2]
[392621950,1761753040421,-151.0,0.00014968,2]
[392621951,1761753040430,-151.0,0.00014968,2]
[392621952,1761753040439,-151.0,0.00014968,2]
[392621953,1761753040448,-153.355383,0.00014968,2]
[392621954,1761753040460,-151.0,0.00014968,2]
[392621955,1761753040469,-151.0,0.00014968,2]
[392621956,1761753040479,-151.0,0.00014968,2]
[392621957,1761753040488,-151.0,0.00014968,2]
[392621958,1761753040497,-151.0,0.00014968,2]
[392621959,1761753040507,-256.170223,0.00014968,2]
[392621961,1761753040517,-256.170223,0.00014968,2]
[392621962,1761753040527,-256.170223,0.00014968,2]
[392621964,1761753040538,-256.170223,0.00014968,2]
[392621966,1761753040549,-153.939409,0.00014968,2]
[392621968,1761753040559,-151.0,0.00014968,2]
[392621970,1761753040568,-151.0,0.00014968,2]
[392621972,1761753040579,-151.0,0.00014968,2]
[392621974,1761753040589,-151.0,0.00014968,2]
[392621976,1761753040599,-151.0,0.00014968,2]
[392621978,1761753040608,-196.246759,0.00014968,2]
[392621980,1761753040618,-151.0,0.00014968,2]
[392621982,1761753040628,-151.0,0.00014968,2]
[392621984,1761753040637,-151.0,0.00014968,2]
[392621986,1761753040646,-151.0,0.00014968,2]
[392621988,1761753040655,-151.0,0.00014968,2]
[392621990,1761753040669,-151.0,0.00014968,2]
[392621992,1761753040679,-151.0,0.00014968,2]
[392621994,1761753040688,-151.0,0.00014968,2]
[392621996,1761753040698,-1035.98546952,0.00014968,2]
[392621999,1761753040707,-412.90532519,0.00014968,2]
[392622001,1761753040716,-1500.0,0.00014968,2]
[392622002,1761753040725,-151.0,0.00014972,2]
[392622004,1761753040735,-477.306932,0.00014972,2]
[392622006,1761753040744,-477.306932,0.00014972,2]
[392622008,1761753040753,-477.306932,0.00014972,2]
[392622011,1761753040764,-477.306932,0.00014972,2]
[392622013,1761753040773,-151.0,0.00014972,2]
[392622015,1761753040783,-150.51313969,0.00014972,2]
[392622018,1761753040808,-0.48686031,0.00014972,2]
[392622020,1761753040817,-159.900247,0.00014972,2]
[392622022,1761753040829,-151.0,0.00014972,2]
[392622024,1761753040839,-406.527866,0.00014972,2]
[392622026,1761753040848,-151.0,0.00014972,2]
[392622028,1761753040857,-406.527866,0.00014972,2]
[392622030,1761753040867,-151.0,0.00014972,2]
[392622032,1761753040877,-151.0,0.00014972,2]
[392622034,1761753040886,-151.0,0.00014972,2]
[392622036,1761753040895,-151.0,0.00014972,2]
[392622038,1761753040905,-151.0,0.00014972,2]
[392622040,1761753040915,-151.0,0.00014972,2]
[392622042,1761753040924,-45.55716069,0.00014972,2]
[392622047,1761753040964,-143.66633931,0.00014972,2]